fUST/lending_fUST_20250717
["ID","MTS","AMOUNT","RATE_DAILY","PERIOD"]
[372696629,1752742279397,-968.0,0.00023347,2]
[372696630,1752742279407,-3000.0,0.0002335,2]
[372696631,1752742279417,-163.11881486,0.00023351,2]
[372696632,1752742279427,-2160.9,0.00023351,2]
[372696633,1752742279436,-4972.9,0.00023353,2]
[372696634,1752742279446,-3346.2,0.00023353,2]
[372696635,1752742279455,-781.73,0.00023353,2]
[372696636,1752742279465,-2840.52,0.00023353,2]
[372696637,1752742279475,-2577.85,0.00023353,2]
[372696638,1752742279485,-1173.34,0.00023353,2]
[372696639,1752742279494,-711.25,0.00023353,2]
[372696640,1752742279504,-1060.78,0.00023355,2]
[372696641,1752742279514,-831.12,0.00023355,2]
[372696642,1752742279523,-460.0,0.00023355,2]
[372696643,1752742279532,-707.35,0.00023355,2]
[372696644,1752742279544,-800.29,0.00023355,2]
[372696645,1752742279775,-1001.39,0.00023355,2]
[372696646,1752742279795,-637.99,0.00023355,2]
[372696647,1752742279810,-4500.0,0.00023356,2]
[372696648,1752742279819,-3000.0,0.0002336,2]
[372696649,1752742279829,-579.71,0.00023362,2]
[372696650,1752742279839,-491.54,0.00023362,2]
[372696651,1752742279849,-460.0,0.00023362,2]
[372696652,1752742279859,-597.14,0.00023362,2]
[372696653,1752742279869,-3000.0,0.0002337,2]
[372696654,1752742279879,-3000.0,0.0002338,2]
[372696655,1752742279889,-3000.0,0.0002339,2]
[372696656,1752742279898,-3000.0,0.000234,2]
[372696657,1752742279908,-3000.0,0.0002341,2]
[372696658,1752742279918,-292.4,0.00023418,6]
[372696659,1752742279927,-3000.0,0.0002342,2]
[372696660,1752742279937,-960.0,0.00023421,2]
[372696661,1752742279948,-3000.0,0.0002343,2]
[372696662,1752742279957,-3000.0,0.0002344,2]
[372696663,1752742279966,-3000.0,0.0002345,2]
[372696664,1752742279976,-500.0,0.00023456,2]
[372696665,1752742279985,-2055.91,0.00023458,2]
[372696666,1752742279994,-197.746617,0.00023459,7]
[372696667,1752742280003,-197.746622,0.00023459,7]
[372696668,1752742280014,-286.460797,0.00023459,7]
[372696669,1752742280023,-3894.02,0.00023459,2]
[372696670,1752742280033,-988.81,0.00023459,2]
[372696671,1752742280043,-1519.82,0.00023459,2]
[372696672,1752742280053,-1835.66,0.00023459,2]
[372696673,1752742280062,-460.74,0.00023459,2]
[372696674,1752742280071,-1041.54,0.00023459,2]
[372696675,1752742280082,-1673.12,0.00023459,2]
[372696676,1752742280091,-3000.0,0.0002346,2]
[372696677,1752742280100,-460.0,0.0002346,2]
[372696678,1752742280110,-652.94,0.0002346,2]
[372696679,1752742280120,-654.61,0.0002346,2]
[372696680,1752742280130,-653.79,0.0002346,2]
[372696681,1752742280139,-585.48,0.0002346,2]
[372696682,1752742280148,-819.09,0.0002346,2]
[372696683,1752742280157,-1350.01,0.00023461,2]
[372696684,1752742280166,-151.0,0.00023465,7]
[372696685,1752742280176,-198.112528,0.00023465,7]
[372696686,1752742280185,-198.112528,0.00023465,7]
[372696687,1752742280194,-3000.0,0.0002347,2]
[372696688,1752742280204,-3000.0,0.0002348,2]
[372696689,1752742280216,-3169.088206,0.0002349,2]
[372696690,1752742280226,-1096.0,0.000235,5]
[372696691,1752742280235,-1000.0,0.000235,2]
[372696692,1752742280245,-492.932174,0.000235,7]
[372696693,1752742280255,-492.932174,0.000235,7]
[372696694,1752742280265,-3997.91240624,0.00023555,2]
[372696695,1752742280275,-203.858254,0.00023555,7]
[372696696,1752742280286,-203.858254,0.00023555,7]
[372696697,1752742280295,-823.0,0.00023559,2]
[372696698,1752742280304,-200.0,0.00023561,2]
[372696699,1752742280314,-200.0,0.00023561,2]
[372696700,1752742280324,-200.0,0.00023561,2]
[372696701,1752742280334,-200.0,0.00023561,2]
[372696702,1752742280344,-200.0,0.00023561,2]
[372696703,1752742280361,-200.0,0.00023561,2]
[372696704,1752742280377,-200.0,0.00023561,2]
[372696705,1752742280389,-200.0,0.00023561,2]
[372696706,1752742280399,-200.0,0.00023561,2]
[372696707,1752742280409,-200.0,0.00023561,2]
[372696708,1752742280420,-200.0,0.00023561,2]
[372696709,1752742280430,-200.0,0.00023561,2]
[372696710,1752742280440,-200.0,0.00023561,2]
[372696711,1752742280450,-200.0,0.00023561,2]
[372696712,1752742280461,-200.0,0.00023561,2]
[372696713,1752742280471,-200.0,0.00023561,2]
[372696714,1752742280481,-200.0,0.00023561,2]
[372696715,1752742280492,-200.0,0.00023561,2]
[372696716,1752742280502,-200.0,0.00023561,2]
[372696717,1752742280513,-200.0,0.00023561,2]
[372696718,1752742280523,-600.0,0.00023562,2]
[372696719,1752742280533,-1596.0,0.00023562,2]
[372696720,1752742280545,-669.0,0.00023562,2]
[372696721,1752742280555,-151.14000585,0.00023562,2]
[372696722,1752742280565,-13187.91523847,0.0002359,9]
[372696723,1752742280575,-151.0,0.000236,7]
[372696724,1752742280585,-151.0,0.000236,7]
[372696725,1752742280596,-151.0,0.000236,7]
[372696726,1752742280607,-151.0,0.000236,7]
[372696727,1752742280619,-151.0,0.000236,7]
[372696728,1752742280634,-151.0,0.000236,7]
[372696729,1752742280644,-170.229647,0.000236,7]
[372696730,1752742280653,-170.229647,0.000236,7]
[372696731,1752742280663,-151.0,0.000236,7]
[372696732,1752742280673,-60333.3,0.000236,2]
[372696733,1752742280683,-326.763875,0.000236,7]
[372696734,1752742280692,-326.76387,0.000236,7]
[372696735,1752742280704,-340.057027,0.000236,7]
[372696736,1752742280714,-340.05702,0.000236,7]
[372696737,1752742280724,-600.0,0.00023616,2]
[372696738,1752742280734,-2160.9,0.00023625,2]
[372696739,1752742280743,-4972.9,0.00023627,2]
[372696740,1752742280754,-3346.2,0.00023627,2]
[372696741,1752742280764,-781.73,0.00023627,2]
[372696742,1752742280774,-2840.52,0.00023627,2]
[372696743,1752742280784,-2577.85,0.00023627,2]
[372696744,1752742280794,-1173.34,0.00023627,2]
[372696745,1752742280804,-711.25,0.00023627,2]
[372696746,1752742280814,-1060.78,0.00023629,2]
[372696747,1752742280823,-831.12,0.00023629,2]
[372696748,1752742280833,-460.0,0.00023629,2]
[372696749,1752742280843,-707.35,0.00023629,2]
[372696750,1752742280852,-800.29,0.00023629,2]
[372696751,1752742280862,-1001.39,0.00023629,2]
[372696752,1752742280872,-637.99,0.00023629,2]
[372696753,1752742280881,-579.71,0.00023636,2]
[372696754,1752742280892,-491.54,0.00023636,2]
[372696755,1752742280901,-460.0,0.00023636,2]
[372696756,1752742280911,-597.14,0.00023636,2]
[372696757,1752742280922,-3182.55,0.00023665,3]
[372696758,1752742280932,-178.0508326,0.00023697,2]
[372696759,1752742280943,-296.76874125,0.00023697,2]
[372696760,1752742283331,1212.95192915,0.00018047,2]
[372696761,1752742283357,10000.0,0.00018047,2]
[372696762,1752742283381,10000.0,0.00018047,2]
[372696763,1752742283406,10000.0,0.00018047,2]
[372696764,1752742283431,10000.0,0.00018047,2]
[372696765,1752742283455,10000.0,0.00018047,2]
[372696766,1752742283480,10000.0,0.00018047,2]
[372696767,1752742283505,10000.0,0.00018047,2]
[372696768,1752742283532,10000.0,0.00018047,2]
[372696769,1752742283584,-178.89142325,0.00018047,2]
[372696770,1752742285777,500.0,0.00027397,120]
[372696771,1752742286016,500.0,0.00027397,120]
[372696772,1752742286263,380.0,0.00027397,120]
[372696774,1752742315057,-2311.15436141,0.00018047,2]
[372696775,1752742315160,-10000.0,0.00018047,2]
[372696776,1752742315563,-10000.0,0.00018047,2]
[372696777,1752742315842,-10000.0,0.00018047,2]
[372696778,1752742316048,-10000.0,0.00018047,2]
[372696779,1752742316292,-10000.0,0.00018047,2]
[372696780,1752742316463,-10000.0,0.00018047,2]
[372696781,1752742316698,-10000.0,0.00018047,2]
[372696783,1752742370146,-300.0,0.00018046,2]
[372696784,1752742370185,-9400.0,0.00018047,2]
[372696785,1752742370447,-10000.0,0.00018047,2]
[372696786,1752742370620,-10000.0,0.00018047,2]
[372696787,1752742370854,-1462.66626951,0.00018047,2]
[372696790,1752742392973,500.0,0.00018046,2]
[372696791,1752742393842,500.0,0.00018046,2]
[372696792,1752742393872,500.0,0.00018046,2]
[372696793,1752742393900,500.0,0.00018046,2]
[372696794,1752742393929,500.0,0.00018046,2]
[372696795,1752742393964,500.0,0.00018046,2]
[372696796,1752742393995,500.0,0.00018046,2]
[372696797,1752742395845,500.0,0.00018046,2]
[372696798,1752742396119,500.0,0.00018046,2]
[372696799,1752742396149,500.0,0.00018046,2]
[372696800,1752742396179,500.0,0.00018046,2]
[372696801,1752742396208,500.0,0.00018046,2]
[372696802,1752742396238,500.0,0.00018046,2]
[372696803,1752742396273,500.0,0.00018046,2]
[372696804,1752742397587,74.66746098,0.00018046,2]
[372696805,1752742397611,425.33253902,0.00018046,2]
[372696806,1752742397859,500.0,0.00018046,2]
[372696807,1752742397891,500.0,0.00018046,2]
[372696808,1752742397920,477.83953496,0.00018046,2]
[372696809,1752742397950,500.0,0.00018046,2]
[372696810,1752742397980,500.0,0.00018046,2]
[372696811,1752742398011,292.75152574,0.00018046,2]
[372696812,1752742398040,500.0,0.00018046,2]
[372696813,1752742398076,500.0,0.00018046,2]
[372696814,1752742398106,500.0,0.00018046,2]
[372696815,1752742398134,538.62974956,0.00018046,2]
[372696816,1752742398165,500.0,0.00018046,2]
[372696817,1752742398196,500.0,0.00018046,2]
[372696818,1752742398226,500.0,0.00018046,2]
[372696819,1752742398257,500.0,0.00018046,2]
[372696820,1752742398287,500.0,0.00018046,2]
[372696821,1752742398317,519.92335925,0.00018046,2]
[372696822,1752742398345,500.0,0.00018046,2]
[372696823,1752742398376,500.0,0.00018046,2]
[372696824,1752742398405,500.0,0.00018046,2]
[372696825,1752742398435,245.52329147,0.00018046,2]
[372696826,1752742398460,254.47670853,0.00018046,2]
[372696827,1752742398494,500.0,0.00018046,2]
[372696828,1752742398530,500.0,0.00018046,2]
[372696829,1752742398569,500.0,0.00018046,2]
[372696830,1752742398605,500.0,0.00018046,2]
[372696831,1752742398641,500.0,0.00018046,2]
[372696832,1752742398671,500.0,0.00018046,2]
[372696833,1752742398702,500.0,0.00018046,2]
[372696834,1752742398890,465.5,0.00018046,2]
[372696835,1752742398921,500.0,0.00018046,2]
[372696836,1752742398952,500.0,0.00018046,2]
[372696837,1752742398982,500.0,0.00018046,2]
[372696838,1752742399018,500.0,0.00018046,2]
[372696839,1752742399056,500.0,0.00018046,2]
[372696840,1752742399087,500.0,0.00018046,2]
[372696841,1752742399123,500.0,0.00018046,2]
[372696842,1752742399155,500.0,0.00018046,2]
[372696843,1752742399185,500.0,0.00018046,2]
[372696844,1752742399220,500.0,0.00018046,2]
[372696845,1752742399253,500.0,0.00018046,2]
[372696846,1752742399282,280.02329147,0.00018046,2]
[372696847,1752742399306,219.97670853,0.00018046,2]
[372696848,1752742399336,500.0,0.00018046,2]
[372696849,1752742399364,622.83904155,0.00018046,2]
[372696850,1752742399399,500.0,0.00018046,2]
[372696851,1752742399430,500.0,0.00018046,2]
[372696852,1752742399461,500.0,0.00018046,2]
[372696853,1752742399498,500.0,0.00018046,2]
[372696854,1752742399526,500.0,0.00018046,2]
[372696855,1752742399555,500.0,0.00018046,2]
[372696856,1752742399584,500.0,0.00018046,2]
[372696857,1752742399613,195.0,0.00018046,2]
[372696858,1752742399645,500.0,0.00018046,2]
[372696859,1752742399676,500.0,0.00018046,2]
[372696860,1752742399706,500.0,0.00018046,2]
[372696861,1752742399743,335.9722614,0.00018046,2]
[372696862,1752742399776,500.0,0.00018046,2]
[372696863,1752742399812,500.0,0.00018046,2]
[372696864,1752742399846,500.0,0.00018046,2]
[372696865,1752742399876,500.0,0.00018046,2]
[372696866,1752742399906,500.0,0.00018046,2]
[372696867,1752742399936,500.0,0.00018046,2]
[372696868,1752742399981,126.21198852,0.00018046,2]
[372696869,1752742400009,373.78801148,0.00018046,2]
[372696870,1752742400042,500.0,0.00018046,2]
[372696871,1752742400076,500.0,0.00018046,2]
[372696872,1752742400108,500.0,0.00018046,2]
[372696873,1752742400145,500.0,0.00018046,2]
[372696874,1752742400269,151.98935022,0.00018046,2]
[372696875,1752742400293,348.01064978,0.00018046,2]
[372696877,1752742409175,195.0,0.00018046,2]
[372696880,1752742415246,460.0,0.00018046,2]
[372696883,1752742419420,460.0,0.00018046,2]
[372696884,1752742419514,155.0,0.00018046,2]
[372696908,1752742425978,462.23711193,0.00018046,2]
[372696909,1752742429193,5545.96422681,0.00018045,2]
[372696910,1752742429844,-151.98935022,0.00018045,2]
[372696912,1752742463063,-300.0,0.00018044,2]
[372696913,1752742464473,-2357.75468802,0.00018045,2]
[372696914,1752742464610,-10000.0,0.00018045,2]
[372696915,1752742465105,-10000.0,0.00018045,2]
[372696916,1752742465341,-10000.0,0.00018045,2]
[372696917,1752742471396,-10000.0,0.00018045,2]
[372696918,1752742471627,-10000.0,0.00018045,2]
[372696919,1752742471821,-10000.0,0.00018045,2]
[372696920,1752742471994,-10000.0,0.00018045,2]
[372696921,1752742472232,-10000.0,0.00018045,2]
[372696922,1752742472332,150.0,0.00013865,2]
[372696923,1752742472431,-9850.0,0.00018045,2]
[372696924,1752742472781,198.19,0.00014526,2]
[372696925,1752742472897,-964.31048549,0.00018045,2]
[372696926,1752742472928,-408.80215068,0.00018046,2]
[372696927,1752742472960,-460.0,0.00018046,2]
[372696928,1752742472989,-460.0,0.00018046,2]
[372696929,1752742473020,-460.0,0.00018046,2]
[372696930,1752742473051,-500.0,0.00018046,2]
[372696931,1752742473261,297.28,0.00015186,2]
[372696932,1752742473696,396.37,0.00015846,2]
[372696933,1752742474155,495.47,0.00016506,2]
[372696934,1752742475020,594.56,0.00017167,2]
[372696935,1752742475413,693.65,0.00017827,2]
[372696936,1752742476049,460.0,0.00018046,2]
[372696937,1752742482724,320.35306679,0.00017147,2]
[372696938,1752742482750,556.44472766,0.00017147,2]
[372696939,1752742482773,10000.0,0.00017147,2]
[372696940,1752742482796,350.91202889,0.00017147,2]
[372696941,1752742482821,647.96316386,0.00017147,2]
[372696942,1752742511553,-314.84586578,0.00018044,2]
[372696943,1752742511583,-460.0,0.00018046,2]
[372696944,1752742511749,-1634.13805783,0.00018046,2]
[372696945,1752742511832,460.0,0.00018046,2]
[372696946,1752742512893,1225.60354337,0.00018046,2]
[372696947,1752742513909,919.20265753,0.00018046,2]
[372696948,1752742515219,689.40199314,0.00018046,2]
[372696949,1752742516027,517.05149486,0.00018046,2]
[372696950,1752742516946,387.78862114,0.00018046,2]
[372696951,1752742517968,290.84146586,0.00018046,2]
[372696952,1752742521344,218.13109939,0.00018046,2]
[372696953,1752742525136,163.59832455,0.00018046,2]
[372696954,1752742526192,151.0,0.00018046,2]
[372696955,1752742529338,159.41295294,0.00017146,2]
[372696956,1752742529364,24.33000106,0.00017146,2]
[372696958,1752742529982,460.0,0.00018046,2]
[372696959,1752742530988,460.0,0.00018044,2]
[372696960,1752742531074,9055.66999894,0.00017146,2]
[372696961,1752742531097,944.33000106,0.00017146,2]
[372696962,1752742531524,151.0,0.00018046,2]
[372696964,1752742534101,151.0,0.00018046,2]
[372696965,1752742545441,155.0,0.00018046,2]
[372696966,1752742552644,460.0,0.00018044,2]
[372696967,1752742556357,460.0,0.00018044,2]
[372696968,1752742557515,150.0,0.00013907,2]
[372696969,1752742557941,156.81,0.00014569,2]
[372696970,1752742558350,235.21,0.00015232,2]
[372696971,1752742558757,313.62,0.00015894,2]
[372696972,1752742559185,392.02,0.00016556,2]
[372696973,1752742559611,470.43,0.00017218,2]
[372696974,1752742560027,176.66420486,0.00017881,2]
[372696975,1752742560054,372.16579514,0.00017881,2]
[372696978,1752742572425,460.0,0.00018044,2]
[372696979,1752742576296,460.0,0.00018044,2]
[372696980,1752742579170,460.0,0.00018044,2]
[372696981,1752742582001,460.0,0.00018044,2]
[372696982,1752742587876,460.0,0.00018044,2]
[372696983,1752742589199,3438.4142038,0.00018045,2]
[372696984,1752742589229,8812.30423554,0.00018045,2]
[372696985,1752742605137,460.0,0.00018044,2]
[372696986,1752742613085,460.0,0.00018044,2]
[372696987,1752742616094,267.69576446,0.00017655,2]
[372696988,1752742616123,544.36019882,0.00017655,2]
[372696990,1752742638826,150.0,0.00013916,2]
[372696991,1752742639237,150.0,0.00014579,2]
[372696992,1752742639695,177.3,0.00015242,2]
[372696993,1752742640149,236.39,0.00015904,2]
[372696994,1752742640563,295.49,0.00016567,2]
[372696995,1752742640984,354.59,0.0001723,2]
[372696996,1752742641427,413.69,0.00017892,2]
[372697000,1752742701747,706.869512,0.00013699,2]
[372697001,1752742714036,150.0,0.00013987,2]
[372697002,1752742714447,150.0,0.00014653,2]
[372697003,1752742716853,150.0,0.00015319,2]
[372697004,1752742717304,161.18,0.00015985,2]
[372697005,1752742717718,201.47,0.00016651,2]
[372697006,1752742718206,241.77,0.00017317,2]
[372697007,1752742718684,282.06,0.00017983,2]
[372697008,1752742722115,441.11213966,0.00018043,2]
[372697012,1752742751064,5193.71814952,0.00018047,2]
[372697013,1752742751088,10000.0,0.00018047,2]
[372697014,1752742751112,10000.0,0.00018047,2]
[372697015,1752742751136,10000.0,0.00018047,2]
[372697016,1752742751160,1371.54067155,0.00018047,2]
[372697017,1752742751293,151.0,0.00018047,2]
[372697018,1752742754187,188.79497363,0.00018047,2]
[372697020,1752742790898,150.0,0.0001404,2]
[372697022,1752742791328,150.0,0.00014709,2]
[372697023,1752742791732,150.0,0.00015377,2]
[372697024,1752742792135,150.0,0.00016046,2]
[372697025,1752742792612,164.15,0.00016715,2]
[372697026,1752742793033,196.98,0.00017383,2]
[372697027,1752742798389,229.81,0.00018052,2]
[372697033,1752742838773,7097.72435482,0.00017143,2]
[372697034,1752742838797,10000.0,0.00017143,2]
[372697035,1752742838820,7802.27564518,0.00017143,2]
[372697036,1752742871042,150.0,0.00014143,2]
[372697037,1752742871475,150.0,0.00014816,2]
[372697038,1752742871894,150.0,0.00015489,2]
[372697039,1752742872305,150.0,0.00016163,2]
[372697041,1752742872629,1597.72435482,0.000181,2]
[372697042,1752742872654,10000.0,0.000181,2]
[372697043,1752742872814,150.0,0.00016836,2]
[372697044,1752742873260,-162.53475898,0.000181,2]
[372697045,1752742873742,150.0,0.0001751,2]
[372697046,1752742925775,165.231409,0.00017597,2]
[372697047,1752742942045,150.0,0.00013854,2]
[372697048,1752742942489,150.0,0.00014514,2]
[372697049,1752742942887,150.0,0.00015174,2]
[372697050,1752742945646,150.0,0.00015833,2]
[372697051,1752742946157,150.0,0.00016493,2]
[372697055,1752743021451,-585.66496433,0.00018041,2]
[372697056,1752743021482,-450.8283618,0.00018082,2]
[372697057,1752743021775,-1672.2189767,0.000181,2]
[372697058,1752743021968,-3344.4379534,0.000181,2]
[372697059,1752743022238,-3311.1240932,0.000181,2]
[372697061,1752743054986,3377.7518136,0.00018042,2]
[372697062,1752743055012,10000.0,0.00018042,2]
[372697063,1752743055038,9690.52617786,0.00018042,2]
[372697084,1752743157661,309.47382214,0.00018039,2]
[372697085,1752743157687,202.98302164,0.00018039,2]
[372697087,1752743216506,9797.01697836,0.0001804,2]
[372697088,1752743216532,10000.0,0.0001804,2]
[372697089,1752743216557,4202.98302164,0.0001804,2]
[372697090,1752743272086,1398.29341488,0.00025887,50]
[372697092,1752743372902,448.39973836,0.00018037,2]
[372697096,1752743380229,5348.61724,0.0001804,2]
[372697097,1752743380253,10000.0,0.0001804,2]
[372697098,1752743380276,7075.73753451,0.0001804,2]
[372697136,1752743432813,-286.95253501,0.00018135,2]
[372697142,1752743432874,-233.04746499,0.00018135,2]
[372697145,1752743432884,-460.0,0.00018136,2]
[372697147,1752743432894,-300.0,0.00018136,2]
[372697149,1752743432903,-300.0,0.00018136,2]
[372697151,1752743432913,-300.0,0.00018136,2]
[372697152,1752743432922,-460.0,0.00018136,2]
[372697153,1752743432932,-460.0,0.00018136,2]
[372697154,1752743432942,-436.98448686,0.00018136,2]
[372697155,1752743432955,-832.04265905,0.00018137,2]
[372697160,1752743432968,-44439.5644245,0.00018137,2]
[372697162,1752743432977,-500.0,0.00018137,2]
[372697165,1752743432987,-500.0,0.00018137,2]
[372697168,1752743432997,-226.51441662,0.00018137,2]
[372697171,1752743433006,-500.0,0.00018137,2]
[372697174,1752743433017,-500.0,0.00018137,2]
[372697176,1752743433028,-500.0,0.00018137,2]
[372697178,1752743433038,-500.0,0.00018137,2]
[372697180,1752743433048,-609.5604215,0.00018137,2]
[372697183,1752743433058,-579.5,0.00018137,2]
[372697186,1752743433068,-500.0,0.00018137,2]
[372697189,1752743433078,-500.0,0.00018137,2]
[372697192,1752743433088,-500.0,0.00018137,2]
[372697195,1752743433098,-500.0,0.00018137,2]
[372697198,1752743433111,-61.65216546,0.00018137,2]
[372697202,1752743433125,-438.34783454,0.00018137,2]
[372697205,1752743433135,-500.0,0.00018137,2]
[372697208,1752743433145,-500.0,0.00018137,2]
[372697211,1752743433155,-500.0,0.00018137,2]
[372697212,1752743433164,-500.0,0.00018137,2]
[372697215,1752743433174,-500.0,0.00018137,2]
[372697218,1752743433183,-500.0,0.00018137,2]
[372697219,1752743433193,-500.0,0.00018137,2]
[372697220,1752743433203,-500.0,0.00018137,2]
[372697221,1752743433212,-194.0226775,0.00018137,2]
[372697222,1752743433222,-500.0,0.00018137,2]
[372697223,1752743433232,-500.0,0.00018137,2]
[372697224,1752743433241,-244.0,0.00018137,2]
[372697225,1752743433251,-500.0,0.00018137,2]
[372697226,1752743433261,-500.0,0.00018137,2]
[372697227,1752743433271,-497.02511839,0.00018137,2]
[372697254,1752743438650,-2.97488161,0.00018137,2]
[372697257,1752743438670,-500.0,0.00018137,2]
[372697259,1752743438681,-85.72511839,0.00018137,2]
[372697263,1752743438705,-414.27488161,0.00018137,2]
[372697265,1752743438715,-500.0,0.00018137,2]
[372697267,1752743438725,-500.0,0.00018137,2]
[372697269,1752743438736,-500.0,0.00018137,2]
[372697271,1752743438746,-500.0,0.00018137,2]
[372697273,1752743438755,-512.77716024,0.00018137,2]
[372697275,1752743438765,-500.0,0.00018137,2]
[372697277,1752743438775,-500.0,0.00018137,2]
[372697279,1752743438785,-500.0,0.00018137,2]
[372697281,1752743438795,-500.0,0.00018137,2]
[372697283,1752743438805,-500.0,0.00018137,2]
[372697285,1752743438814,-500.0,0.00018137,2]
[372697288,1752743438824,-200.0,0.00018137,2]
[372697290,1752743438834,-279.99148436,0.00018137,2]
[372697292,1752743438844,-500.0,0.00018137,2]
[372697294,1752743438853,-500.0,0.00018137,2]
[372697296,1752743438866,-500.0,0.00018137,2]
[372697298,1752743438876,-500.0,0.00018137,2]
[372697300,1752743438886,-650.0,0.00018137,2]
[372697302,1752743438896,-500.0,0.00018137,2]
[372697304,1752743438907,-299.33585305,0.00018137,2]
[372697306,1752743438917,-262.24137375,0.00018137,2]
[372697308,1752743438926,-932.92256532,0.00018137,2]
[372697310,1752743438937,-932.92256532,0.00018137,2]
[372697312,1752743438950,-932.92256532,0.00018137,2]
[372697314,1752743438959,-932.92256532,0.00018137,2]
[372697316,1752743438969,-932.92256532,0.00018137,2]
[372697318,1752743438979,-932.92256532,0.00018137,2]
[372697320,1752743438989,-932.92256532,0.00018137,2]
[372697322,1752743438999,-932.92256532,0.00018137,2]
[372697324,1752743439008,-932.92256532,0.00018137,2]
[372697326,1752743439018,-932.92256532,0.00018137,2]
[372697328,1752743439029,-932.92256532,0.00018137,2]
[372697330,1752743439040,-932.92256532,0.00018137,2]
[372697332,1752743439050,-932.92256532,0.00018137,2]
[372697334,1752743439060,-932.92256532,0.00018137,2]
[372697335,1752743439070,-932.92256532,0.00018137,2]
[372697336,1752743439080,-932.92256532,0.00018137,2]
[372697337,1752743439090,-932.92256532,0.00018137,2]
[372697338,1752743439100,-932.92256532,0.00018137,2]
[372697339,1752743439112,-932.92256532,0.00018137,2]
[372697340,1752743439122,-932.92256532,0.00018137,2]
[372697341,1752743439132,-932.92256532,0.00018137,2]
[372697342,1752743439142,-1721.40790557,0.00018137,2]
[372697343,1752743439152,-1721.40790557,0.00018137,2]
[372697345,1752743439161,-1721.40790557,0.00018137,2]
[372697347,1752743439171,-1721.40790557,0.00018137,2]
[372697349,1752743439181,-1721.40790557,0.00018137,2]
[372697351,1752743439190,-1721.40790557,0.00018137,2]
[372697354,1752743439203,-1721.40790557,0.00018137,2]
[372697356,1752743439215,-460.0,0.00018138,2]
[372697358,1752743439225,-460.39813909,0.00018138,2]
[372697360,1752743439235,-460.0,0.00018138,2]
[372697362,1752743439245,-460.0,0.00018138,2]
[372697364,1752743439255,-460.0,0.00018138,2]
[372697366,1752743439264,-460.0,0.00018138,2]
[372697368,1752743439274,-473.5727844,0.00018138,2]
[372697370,1752743439283,-460.0,0.00018138,2]
[372697372,1752743439293,-460.0,0.00018138,2]
[372697374,1752743439302,-460.0,0.00018138,2]
[372697376,1752743439312,-460.0,0.00018138,2]
[372697378,1752743439322,-460.0,0.00018138,2]
[372697380,1752743439332,-460.0,0.00018138,2]
[372697382,1752743439342,-460.0,0.00018138,2]
[372697384,1752743439352,-460.0,0.00018138,2]
[372697386,1752743439364,-460.0,0.00018138,2]
[372697389,1752743439375,-460.0,0.00018138,2]